bitfinex/quotes_SOLUSD_20220226
["timestamp","ask_amount","ask_price","bid_price","bid_amount"]
[1645911980944,16.3501,91.85,91.772,3.01125706]
[1645911981546,16.3501,91.85,91.773,28.60847332]
[1645911981745,16.3501,91.85,91.774,3.04091955]
[1645911981946,109.1,91.849,91.774,3.04091955]
[1645911982146,109.1,91.839,91.774,3.04091955]
[1645911982346,109.1,91.837,91.774,3.04091955]
[1645911982546,109.1,91.837,91.769,3.05173198]
[1645911983248,109.1,91.829,91.747,2.84191186]
[1645911983649,2.641,91.828,91.734,2.67530986]
[1645911986850,4.06705163,91.828,91.734,2.67530986]
[1645911987151,109.1,91.826,91.707,4.358]
[1645911987449,29.51529796,91.827,91.702,3.07237912]
[1645911987450,109.1,91.823,91.702,3.07237912]
[1645911987648,109.1,91.823,91.703,27.32282543]
[1645911987649,2.636,91.822,91.703,27.32282543]
[1645911987851,109.1,91.819,91.704,2.70344869]
[1645911988048,109.1,91.819,91.705,27.32282543]
[1645911988049,2.634,91.818,91.705,27.32282543]
[1645911988251,109.1,91.816,91.705,27.32282543]
[1645911988449,2.632,91.815,91.706,2.34731545]
[1645911989050,2.632,91.815,91.707,27.32282543]
[1645911989251,2.632,91.815,91.708,3.01705861]
[1645911989853,2.632,91.815,91.709,27.32282543]
[1645911990051,2.632,91.815,91.71,2.44499849]
[1645911990654,109.1,91.809,91.71,2.44499849]
[1645911990859,109.1,91.806,91.702,2.77044361]
[1645911991554,109.1,91.806,91.704,2.67378109]
[1645911992053,109.1,91.806,91.705,27.31327406]
[1645911992255,109.1,91.806,91.706,2.75309775]
[1645911993558,2.638,91.805,91.706,2.75309775]
[1645911993758,109.1,91.806,91.706,2.75309775]
[1645911994457,109.1,91.806,91.708,2.60762391]
[1645911994658,52.10195061,91.807,91.709,4.359]
[1645911994856,52.10195061,91.807,91.71,18.72380725]
[1645911995059,52.10195061,91.807,91.711,7.48331569]
[1645911995260,52.10195061,91.807,91.712,2.52934956]
[1645911995458,52.10195061,91.807,91.713,4.359]
[1645911995658,52.10195061,91.807,91.714,2.56760694]
[1645911996059,52.10195061,91.807,91.711,4.359]
[1645911996060,52.10195061,91.807,91.716,2.58077584]
[1645911996561,52.10195061,91.807,91.72,16.3555]
[1645911996859,52.10195061,91.807,91.721,2.98423656]
[1645911997259,52.10195061,91.807,91.723,2.92416332]
[1645911997660,52.10195061,91.807,91.725,2.37849482]
[1645911998262,52.10195061,91.807,91.73,16.3537]
[1645911998463,52.10195061,91.807,91.731,3.02610194]
[1645912000062,109.1,91.806,91.731,3.02610194]
[1645912000262,52.10195061,91.807,91.731,3.02610194]
[1645912001464,52.10195061,91.807,91.731,2.52610194]
[1645912004469,109.1,91.806,91.731,2.52610194]
[1645912005271,52.10195061,91.807,91.731,2.52610194]
[1645912005471,52.10195061,91.807,91.714,2.61951245]
[1645912005673,109.1,91.806,91.714,2.61951245]
[1645912006373,52.10195061,91.807,91.714,2.61951245]
[1645912006570,52.10195061,91.807,91.72,16.3555]
[1645912006770,52.10195061,91.807,91.721,2.76155014]
[1645912007877,52.10195061,91.807,91.73,15.69]
[1645912008078,52.10195061,91.807,91.731,2.46575186]
[1645912009280,109.1,91.806,91.731,2.46575186]
[1645912009481,52.10195061,91.807,91.714,2.56486176]
[1645912010480,52.10195061,91.807,91.72,16.3545]
[1645912010682,52.10195061,91.807,91.721,2.78070082]
[1645912013703,109.1,91.806,91.721,2.78070082]
[1645912013903,52.10195061,91.807,91.721,2.78070082]
[1645912014305,52.10195061,91.807,91.73,16.3539]
[1645912014605,52.10195061,91.807,91.731,2.49748192]
[1645912015504,109.1,91.806,91.731,2.49748192]
[1645912015705,117.27,91.806,91.731,2.49748192]
[1645912017305,109.1,91.806,91.731,2.49748192]
[1645912018208,52.10195061,91.807,91.74,16.352]
[1645912018506,52.10195061,91.807,91.741,2.263574]
[1645912021614,109.1,91.806,91.741,2.263574]
[1645912023111,2.642,91.805,91.714,2.36236975]
[1645912023311,109.1,91.804,91.714,2.36236975]
[1645912023511,2.642,91.803,91.714,2.36236975]
[1645912024613,2.642,91.803,91.702,6.61483025]
[1645912025214,2.642,91.803,91.704,2.2945849]
[1645912025618,2.642,91.803,91.706,2.95501981]
[1645912026015,2.642,91.803,91.708,2.3494258]
[1645912026415,2.642,91.803,91.709,26.10507573]
[1645912026620,2.642,91.803,91.71,2.94984625]
[1645912026915,109.1,91.804,91.71,2.94984625]
[1645912027516,109.1,91.804,91.711,26.14854949]
[1645912027715,109.1,91.804,91.712,3.08514572]
[1645912028121,109.1,91.804,91.714,2.44535335]
[1645912028716,109.1,91.804,91.702,7.03048612]
[1645912028915,4.17149108,91.803,91.702,7.03048612]
[1645912029320,4.17149108,91.803,91.703,24.84664606]
[1645912029617,2.626,91.803,91.704,2.8508643]
[1645912030119,2.626,91.803,91.705,24.84664606]
[1645912030319,2.626,91.803,91.706,2.78561492]
[1645912030518,2.626,91.803,91.707,24.84664606]
[1645912030724,2.626,91.803,91.708,2.50286408]
[1645912031120,2.626,91.803,91.71,2.38263836]
[1645912031320,109.1,91.804,91.71,2.38263836]
[1645912031522,109.1,91.804,91.711,24.84664606]
[1645912031719,109.1,91.804,91.712,2.57139492]
[1645912032320,109.1,91.804,91.713,24.84664606]
[1645912032520,109.1,91.804,91.714,3.08613669]
[1645912033020,109.1,91.804,91.715,24.84664606]
[1645912033220,109.1,91.804,91.716,2.37869524]
[1645912033923,109.1,91.804,91.717,24.84664606]
[1645912034123,109.1,91.804,91.718,2.85751445]
[1645912034625,109.1,91.804,91.719,24.84664606]
[1645912034921,109.1,91.804,91.72,3.0529329]
[1645912035321,109.1,91.804,91.702,2.35846731]
[1645912035821,109.1,91.804,91.703,24.87374178]
[1645912036021,109.1,91.804,91.704,2.49494049]
[1645912036321,109.1,91.804,91.705,24.87374178]
[1645912036523,109.1,91.804,91.706,2.26681918]
[1645912036725,109.1,91.804,91.707,22.6547]
[1645912037022,109.1,91.804,91.708,3.02761714]
[1645912037225,109.1,91.804,91.709,2.71812729]
[1645912037522,109.1,91.804,91.71,24.87374178]
[1645912037723,109.1,91.804,91.711,2.30639601]
[1645912038325,109.1,91.804,91.712,24.87374178]
[1645912038524,109.1,91.804,91.713,2.78595649]
[1645912039126,109.1,91.804,91.714,24.87374178]
[1645912039323,109.1,91.804,91.715,2.56653649]
[1645912039927,109.1,91.804,91.716,24.87374178]
[1645912040127,109.1,91.804,91.717,2.43130522]
[1645912040731,1.37042001,91.798,91.717,2.43130522]
[1645912040926,111.738,91.797,91.674,2.37905999]
[1645912041127,1.63688437,91.796,91.674,2.37905999]
[1645912041326,2.638,91.795,91.674,2.37905999]
[1645912041525,2.638,91.795,91.675,24.9400867]
[1645912041725,109.1,91.793,91.676,3.06141472]
[1645912041925,109.1,91.789,91.676,3.06141472]
[1645912042126,109.1,91.779,91.678,2.61064285]
[1645912042327,109.1,91.769,91.678,2.61064285]
[1645912042531,109.1,91.769,91.64,15.69]
[1645912042532,4.49511054,91.768,91.679,24.9400867]
[1645912042726,5.0,91.762,91.679,24.9400867]
[1645912042928,109.1,91.749,91.652,2.55338355]
[1645912043128,109.1,91.739,91.632,3.04925934]
[1645912043326,57.64381283,91.748,91.602,2.42599486]
[1645912043327,109.1,91.729,91.602,2.42599486]
[1645912043529,4.2361625,91.728,91.602,2.42599486]
[1645912043727,4.2361625,91.728,91.591,4.363]
[1645912043728,5.0,91.712,91.605,20.00989379]
[1645912043929,109.1,91.699,91.606,2.9204491]
[1645912044129,114.93,91.699,91.606,2.9204491]
[1645912044328,4.08801812,91.698,91.585,2.5517079]
[1645912044528,109.1,91.697,91.585,2.5517079]
[1645912044728,109.1,91.697,91.586,4.364]
[1645912044930,109.1,91.697,91.585,2.5517079]
[1645912045327,115.43,91.697,91.585,2.5517079]
[1645912045529,115.43,91.697,91.586,4.364]
[1645912045730,2.634,91.696,91.555,4.364]
[1645912046029,4.19726692,91.696,91.555,6.99595098]
[1645912046229,109.1,91.695,91.555,2.63195098]
[1645912046533,51.86384707,91.678,91.555,2.63195098]
[1645912046727,109.1,91.677,91.555,2.63195098]
[1645912046928,132.2834,91.677,91.555,2.63195098]
[1645912047632,109.1,91.669,91.555,2.63195098]
[1645912047829,109.1,91.669,91.561,2.69970025]
[1645912048029,109.1,91.669,91.562,4.365]
[1645912049131,109.1,91.669,91.56,15.69]
[1645912049329,120.0,91.668,91.604,0.38867083]
[1645912049530,109.1,91.667,91.604,0.38867083]
[1645912050530,109.1,91.665,91.604,0.38867083]
[1645912050732,16.1971,91.669,91.604,0.38867083]
[1645912050931,23.7749,91.689,91.604,0.38867083]
[1645912051634,109.1,91.676,91.604,0.38867083]
[1645912051835,109.1,91.669,91.604,0.38867083]
[1645912052033,109.1,91.659,91.604,0.38867083]
[1645912052234,2.611,91.658,91.604,0.38867083]
[1645912052436,109.1,91.657,91.604,0.38867083]
[1645912053035,109.1,91.657,91.542,4.365]
[1645912053235,115.26,91.657,91.542,4.365]
[1645912053837,115.26,91.657,91.541,2.48876525]
[1645912054439,109.1,91.657,91.541,2.48876525]
[1645912054740,109.1,91.657,91.542,49.9360737]
[1645912054938,109.1,91.657,91.543,3.11643662]
[1645912055138,109.1,91.657,91.544,6.76558101]
[1645912055340,109.1,91.657,91.544,5.14637022]
[1645912055637,109.1,91.657,91.545,2.74678921]
[1645912055937,1.71024765,91.656,91.544,2.39958101]
[1645912056136,116.54,91.657,91.539,2.60027594]
[1645912057042,109.1,91.655,91.539,2.60027594]
[1645912057242,109.1,91.655,91.539,2.10027594]
[1645912057441,5.0,91.651,91.539,2.10027594]
[1645912057644,109.1,91.639,91.539,2.10027594]
[1645912057847,109.1,91.629,91.539,2.10027594]
[1645912058043,2.682,91.628,91.539,2.10027594]
[1645912059246,109.1,91.627,91.539,2.10027594]
[1645912060167,109.1,91.626,91.539,2.10027594]
[1645912060747,109.1,91.626,91.529,4.366]
[1645912060947,109.1,91.624,91.529,4.366]
[1645912062349,109.1,91.617,91.529,4.366]
[1645912063351,109.1,91.617,91.529,4.31278545]
[1645912064350,2.649,91.616,91.529,4.31278545]
[1645912064550,109.1,91.615,91.529,4.31278545]
[1645912064755,109.1,91.609,91.529,4.31278545]
[1645912065653,109.1,91.605,91.471,0.0062977]
[1645912065953,109.1,91.605,91.46,71.2156]
[1645912065954,55.0681269,91.503,91.417,67.35824213]
[1645912066154,110.84080345,91.499,91.389,47.6192]
[1645912066353,109.1,91.499,91.389,47.6192]
[1645912066553,15.69,91.5,91.39,3.10414845]
[1645912066754,65.9131269,91.503,91.39,3.10414845]
[1645912066755,55.0681269,91.503,91.391,2.41552712]
[1645912066953,55.0681269,91.503,91.39,15.60552712]
[1645912067154,55.0681269,91.503,91.391,2.41481223]
[1645912067874,55.0681269,91.503,91.42,16.4073]
[1645912068774,55.0681269,91.503,91.421,2.74678921]
[1645912070378,6.8,91.504,91.43,16.4061]
[1645912070576,6.8,91.504,91.431,2.23364476]
[1645912070778,6.8,91.504,91.431,2.74678921]
[1645912070979,6.8,91.504,91.438,2.19089903]
[1645912071375,6.8,91.504,91.45,16.4015]
[1645912071776,6.8,91.504,91.451,2.74678921]
[1645912071976,16.4012,91.54,91.451,2.74678921]
[1645912072576,15.69,91.53,91.441,22.6694]
[1645912072777,16.4054,91.52,91.442,2.74678921]
[1645912072977,51.00431661,91.539,91.442,2.74678921]
[1645912072978,48.7601437,91.539,91.442,2.74678921]
[1645912073177,48.7601437,91.539,91.442,4.98839789]
[1645912073577,48.7601437,91.539,91.443,2.74678921]
[1645912074778,16.3993,91.55,91.443,2.74678921]
[1645912075383,16.3993,91.55,91.45,16.4019]
[1645912075583,32.0893,91.55,91.45,16.4019]
[1645912075785,54.82257697,91.549,91.45,16.4019]
[1645912076389,1.82835901,91.547,91.45,16.4019]
[1645912077588,1.82835901,91.547,91.45,19.14868921]
[1645912077789,1.82835901,91.547,91.45,2.74678921]
[1645912078593,1.82835901,91.547,91.441,22.6694]
[1645912079594,1.82835901,91.547,91.45,16.4022]
[1645912080093,1.82835901,91.547,91.442,109.1]
[1645912080293,1.82835901,91.547,91.451,2.74678921]
[1645912080493,54.82257697,91.549,91.451,111.84678921]
[1645912080693,54.82257697,91.549,91.451,26.78058921]
[1645912080899,54.82257697,91.549,91.452,2.74678921]
[1645912081493,16.3983,91.57,91.49,16.3966]
[1645912081695,32.085,91.59,91.483,109.1]
[1645912081899,1.97953473,91.589,91.491,2.74678921]
[1645912082595,48.7397171,91.588,91.491,2.74678921]
[1645912082794,1.79892595,91.587,91.491,2.74678921]
[1645912082996,48.7397171,91.588,91.51,16.393]
[1645912083395,48.7397171,91.588,91.511,2.74678921]
[1645912083794,48.2397171,91.588,91.511,2.74678921]
[1645912084797,48.2397171,91.588,91.5,54.633]
[1645912085800,48.2397171,91.588,91.501,2.74678921]
[1645912086703,48.2397171,91.588,91.51,16.3917]
[1645912088006,48.2397171,91.588,91.52,16.3913]
[1645912088809,110.78171018,91.587,91.501,23.4575]
[1645912089008,2.00382025,91.586,91.501,23.4575]
[1645912089411,4.369,91.585,91.501,23.4575]
[1645912089610,4.369,91.585,91.48,16.3977]
[1645912089809,4.369,91.585,91.47,2.74678921]
[1645912089810,16.3953,91.58,91.47,2.74678921]
[1645912090010,1.8591395,91.579,91.485,2.74678921]
[1645912090410,2.26235199,91.587,91.485,2.74678921]
[1645912091011,109.1,91.587,91.486,4.369]
[1645912091314,2.04389093,91.586,91.472,23.097]
[1645912091509,4.369,91.585,91.472,23.097]
[1645912092212,1.93770687,91.584,91.485,2.74678921]
[1645912092414,1.92650071,91.579,91.485,2.74678921]
[1645912093514,1.92650071,91.579,91.5,16.3949]
[1645912095133,47.18177158,91.569,91.486,24.5033]
[1645912095332,2.11676965,91.568,91.486,24.5033]
[1645912095731,111.21676965,91.568,91.486,24.5033]
[1645912095932,2.06389411,91.567,91.486,24.5033]
[1645912096932,2.06389411,91.567,91.463,2.74678921]
[1645912097132,109.1,91.566,91.454,48.5077]
[1645912097332,109.1,91.564,91.454,48.5077]
[1645912097633,109.1,91.549,91.454,48.5077]
[1645912097832,109.1,91.546,91.454,48.5077]
[1645912098031,109.1,91.544,91.407,4.371]
[1645912098234,109.1,91.529,91.414,47.0202]
[1645912098433,109.1,91.527,91.414,47.0202]
[1645912098633,1.89659983,91.526,91.414,47.0202]
[1645912098834,1.89659983,91.526,91.414,49.76698921]
[1645912099234,16.4094,91.5,91.42,16.4094]
[1645912099533,46.96498314,91.499,91.42,16.4094]
[1645912099734,23.3794,91.528,91.3,43.17556564]
[1645912099735,15.69,91.49,91.3,43.17556564]
[1645912099934,11.4,91.39,91.3,43.17556564]
[1645912100134,2.52476972,91.389,91.3,43.17556564]
[1645912100433,11.4,91.39,91.3,43.17556564]
[1645912100434,2.4038507,91.379,91.3,43.17556564]
[1645912100634,2.4038507,91.379,91.3,42.67556564]
[1645912101034,11.4,91.39,91.3,42.67556564]
[1645912101637,2.39046452,91.389,91.3,42.67556564]
[1645912101835,11.4,91.39,91.3,42.67556564]
[1645912102235,14.25636139,91.39,91.3,42.67556564]
[1645912102435,2.49065984,91.389,91.3,42.67556564]
[1645912103538,11.13065984,91.389,91.3,42.67556564]
[1645912103938,8.64,91.389,91.3,42.67556564]
[1645912104337,11.4,91.39,91.311,109.1]
[1645912105537,11.4,91.39,91.35,16.4181]
[1645912105738,2.71471471,91.449,91.35,16.4181]
[1645912106338,8.81178616,91.448,91.351,51.78942732]
[1645912107743,31.3001938,91.447,91.351,51.78942732]
[1645912107944,8.81178616,91.448,91.351,51.78942732]
[1645912107945,2.19329183,91.446,91.351,51.78942732]
[1645912109744,2.19329183,91.446,91.352,109.1]
[1645912110545,2.19329183,91.446,91.361,109.1]
[1645912110745,2.19329183,91.446,91.36,16.4174]
[1645912114159,2.32882731,91.439,91.351,51.78942732]
[1645912115151,2.32882731,91.439,91.361,109.1]
[1645912115352,2.83528548,91.45,91.361,109.1]
[1645912115553,4.376,91.495,91.363,109.1]
[1645912115757,1.37339895,91.529,91.366,109.1]
[1645912115953,2.615,91.559,91.38,177.62]
[1645912116153,1.41531346,91.557,91.48,16.3967]
[1645912116357,1.45366447,91.579,91.48,7.73]
[1645912116654,1.45366447,91.579,91.481,109.1]
[1645912116855,69.4318,91.599,91.481,109.1]
[1645912116856,5.98517401,91.598,91.481,109.1]
[1645912117057,1.61517401,91.598,91.481,109.1]
[1645912117255,14.27414089,91.597,91.483,109.1]
[1645912117459,1.7542209,91.596,91.483,109.1]
[1645912117857,1.7542209,91.596,91.482,56.90188924]
[1645912118456,16.3939,91.59,91.5,16.3931]
[1645912118956,1.74017142,91.589,91.501,60.33295287]
[1645912119559,2.74678921,91.597,91.51,16.3913]
[1645912119757,22.524,91.599,91.51,7.74]
[1645912120556,14.1580388,91.598,91.51,7.74]
[1645912120756,14.1580388,91.598,91.502,4.369]
[1645912121558,14.1580388,91.598,91.52,16.3895]
[1645912121758,14.1580388,91.598,91.521,58.95805324]
[1645912121957,22.524,91.599,91.521,58.95805324]
[1645912122360,1.43930888,91.598,91.521,58.95805324]
[1645912122959,16.88147909,91.597,91.521,58.95805324]
[1645912123361,1.44722789,91.596,91.521,58.95805324]
[1645912123560,4.1940171,91.596,91.521,58.95805324]
[1645912123759,1.44722789,91.596,91.521,58.95805324]
[1645912124461,16.3943,91.59,91.521,58.95805324]
[1645912124665,1.71440599,91.589,91.521,58.95805324]
[1645912125061,1.71440599,91.589,91.5,16.3929]
[1645912125269,112.2,91.585,91.482,23.2916]
[1645912125464,1.3977838,91.584,91.482,23.2916]
[1645912125665,4.14457301,91.584,91.482,23.2916]
[1645912126068,0.4020276,91.582,91.483,43.04933245]
[1645912126466,16.3972,91.58,91.483,43.04933245]
[1645912126666,1.6433953,91.579,91.483,43.04933245]
[1645912127270,7.11678921,91.578,91.483,43.04933245]
[1645912127467,13.16,91.57,91.483,43.04933245]
[1645912127698,10.66856703,91.568,91.483,43.04933245]
[1645912127895,5.87205346,91.567,91.483,43.04933245]
[1645912128095,1.50205346,91.567,91.483,43.04933245]
[1645912129196,1.85579482,91.579,91.484,109.1]
[1645912129401,1.85579482,91.579,91.485,4.37]
[1645912129600,1.75594162,91.598,91.485,4.37]
[1645912129803,1.75594162,91.598,91.484,4.369]
[1645912130002,112.2,91.581,91.484,4.369]
[1645912130200,2.51769211,91.58,91.484,4.369]
[1645912130398,5.26448132,91.58,91.483,43.04933245]
[1645912131201,2.74678921,91.579,91.483,43.04933245]
[1645912131702,1.69941175,91.579,91.484,109.1]
[1645912131901,111.84678921,91.605,91.485,4.37]
[1645912132101,1.56709216,91.598,91.485,4.37]
[1645912132501,16.3933,91.59,91.49,16.3949]
[1645912132701,16.3933,91.59,91.49,29.5549]
[1645912132903,1.63440613,91.589,91.491,4.369]
[1645912133102,109.1,91.596,91.483,43.04933245]
[1645912133303,2.74678921,91.588,91.483,43.04933245]
[1645912133707,4.369,91.587,91.499,0.44593359]
[1645912133904,2.74678921,91.588,91.499,0.44593359]
[1645912134104,2.74678921,91.586,91.499,0.44593359]
[1645912134307,4.369,91.585,91.499,0.44593359]
[1645912134507,16.3953,91.58,91.499,0.44593359]
[1645912134709,5.78152795,91.579,91.499,0.44593359]
[1645912134906,8.52831716,91.579,91.499,0.44593359]
[1645912135405,2.74678921,91.578,91.499,0.44593359]
[1645912135905,5.78152795,91.579,91.499,0.44593359]
[1645912138306,1.53050028,91.569,91.499,0.44593359]
[1645912139205,1.53050028,91.569,91.49,16.34203359]
[1645912144307,1.53050028,91.569,91.491,109.1]
[1645912144507,1.51292146,91.58,91.491,109.1]
[1645912144707,1.86558215,91.585,91.491,109.1]
[1645912144907,16.3941,91.59,91.492,4.369]
[1645912145110,1.51292146,91.591,91.493,109.1]
[1645912145307,10.47949163,91.595,91.52,16.3913]
[1645912145506,10.47949163,91.595,91.522,47.02278237]
[1645912145708,1.72505297,91.594,91.522,47.02278237]
[1645912146108,1.51292146,91.591,91.522,47.02278237]
[1645912146308,1.51292146,91.588,91.522,47.02278237]
[1645912146509,1.51292146,91.589,91.522,47.02278237]
[1645912146710,1.73794293,91.579,91.501,46.9038]
[1645912146910,1.51292146,91.577,91.501,46.9038]
[1645912147110,1.51292146,91.572,91.501,46.9038]
[1645912147312,1.51292146,91.571,91.501,46.9038]
[1645912147511,1.51292146,91.577,91.501,46.9038]
[1645912147714,4.05722585,91.57,91.502,47.44558565]
[1645912148913,1.48670582,91.569,91.502,47.44558565]
[1645912150618,2.99962728,91.569,91.502,47.44558565]
[1645912151824,1.51292146,91.568,91.502,47.44558565]
[1645912152825,1.48670582,91.569,91.502,47.44558565]
[1645912153322,1.48670582,91.569,91.48,16.3968]
[1645912153723,110.58670582,91.569,91.48,16.3968]
[1645912153945,1.48670582,91.569,91.48,16.3968]
[1645912154123,2.99962728,91.569,91.48,16.3968]
[1645912154325,1.51292146,91.568,91.481,50.90243871]
[1645912154924,2.99962728,91.569,91.481,50.90243871]
[1645912155127,1.48670582,91.569,91.481,50.90243871]
[1645912155725,2.99962728,91.569,91.481,50.90243871]
[1645912156327,1.48670582,91.569,91.481,50.90243871]
[1645912156727,2.99962728,91.569,91.481,50.90243871]
[1645912156928,1.48670582,91.569,91.49,16.3966]
[1645912158530,20.45352585,91.57,91.49,16.3966]
[1645912158731,4.05722585,91.57,91.501,58.85063394]
[1645912163253,20.45362585,91.57,91.501,58.85063394]
[1645912163453,3.25039986,91.569,91.501,58.85063394]
[1645912163652,1.51292146,91.564,91.501,58.85063394]
[1645912163854,1.51292146,91.566,91.501,58.85063394]
[1645912164053,1.51292146,91.565,91.501,58.85063394]
[1645912164252,1.51292146,91.564,91.501,58.85063394]
[1645912164452,1.51292146,91.563,91.501,58.85063394]
[1645912164653,1.51292146,91.562,91.501,58.85063394]
[1645912165253,1.51292146,91.561,91.501,58.85063394]
[1645912166054,24.7943,91.582,91.501,58.85063394]
[1645912166854,12.60064256,91.581,91.501,58.85063394]
[1645912168457,16.3946,91.58,91.501,58.85063394]
[1645912169059,17.90752146,91.58,91.501,58.85063394]
[1645912169361,12.60064256,91.581,91.502,109.1]
[1645912169563,112.2,91.584,91.52,16.3914]
[1645912169762,1.51292146,91.593,91.52,16.3914]
[1645912169962,1.51292146,91.597,91.52,16.3914]
[1645912170162,23.6412,91.598,91.52,16.3914]
[1645912170562,13.49382986,91.597,91.521,50.88743362]
[1645912172863,13.49382986,91.597,91.531,109.1]
[1645912173663,13.49382986,91.597,91.521,50.88743362]
[1645912174067,1.80526592,91.596,91.521,50.88743362]
[1645912174366,1.51292146,91.595,91.521,50.88743362]
[1645912174566,1.51292146,91.594,91.521,50.88743362]
[1645912174767,1.51292146,91.589,91.521,50.88743362]
[1645912174969,1.51292146,91.587,91.521,50.88743362]
[1645912175567,9.23752691,91.586,91.521,50.88743362]
[1645912175968,16.3959,91.58,91.521,50.88743362]
[1645912176272,2.61636938,91.579,91.521,50.88743362]
[1645912176870,16.3959,91.58,91.521,50.88743362]
[1645912177069,22.9729,91.599,91.521,50.88743362]
[1645912177070,1.51292146,91.593,91.521,50.88743362]
[1645912177270,3.34797087,91.597,91.521,50.88743362]
[1645912177470,1.83504941,91.597,91.521,50.88743362]
[1645912177873,20.4766867,91.596,91.521,50.88743362]
[1645912178073,1.7331468,91.589,91.521,50.88743362]
[1645912183175,24.8635,91.598,91.53,16.3891]
[1645912183980,1.51292146,91.608,91.53,16.3891]
[1645912184176,14.33649212,91.607,91.53,16.3891]
[1645912184376,7.7395663,91.606,91.53,16.3891]
[1645912184778,7.7395663,91.606,91.531,109.1]
[1645912184976,7.7395663,91.606,91.541,109.1]
[1645912185476,112.2,91.623,91.541,109.1]
[1645912185477,24.46342146,91.619,91.541,109.1]
[1645912185678,22.9505,91.619,91.541,109.1]
[1645912185877,10.46138781,91.618,91.543,109.1]
[1645912186480,10.46138781,91.618,91.55,16.3858]
[1645912189081,22.9505,91.619,91.55,16.3858]
[1645912189480,22.9505,91.619,91.56,16.3839]
[1645912189680,112.2,91.623,91.56,16.3839]
[1645912189881,16.3836,91.64,91.561,109.1]
[1645912190081,12.12272295,91.639,91.563,109.1]
[1645912190581,7.75150983,91.638,91.57,16.3822]
[1645912190982,12.12272295,91.639,91.57,16.3822]
[1645912191286,1.51292146,91.652,91.571,109.1]
[1645912191485,1.51292146,91.657,91.572,2.80198971]
[1645912191682,1.51292146,91.665,91.59,16.3787]
[1645912191882,7.75945971,91.656,91.59,16.3787]
[1645912192083,7.75945971,91.656,91.591,109.1]
[1645912192281,7.75945971,91.663,91.593,109.1]
[1645912192682,1.51292146,91.691,91.594,2.78363642]
[1645912192887,1.51292146,91.691,91.596,109.1]
[1645912193186,12.11970327,91.689,91.601,109.1]
[1645912193386,12.11970327,91.689,91.603,109.1]
[1645912193586,24.9707,91.7,91.611,109.1]
[1645912193789,24.9707,91.7,91.612,4.364]
[1645912194188,7.77204839,91.699,91.612,4.364]
[1645912194386,7.77204839,91.699,91.64,16.3697]
[1645912194586,14.25165766,91.698,91.641,53.72050333]
[1645912195409,24.9707,91.7,91.641,53.72050333]
[1645912196412,13.3462799,91.739,91.65,16.3677]
[1645912196611,13.3462799,91.739,91.642,109.1]
[1645912196811,16.09306911,91.739,91.651,109.1]
[1645912197010,7.77124801,91.727,91.651,109.1]
[1645912197210,7.77124801,91.727,91.65,15.75]
[1645912197411,11.73928347,91.726,91.65,15.75]
[1645912198013,1.8429002,91.725,91.65,15.75]
[1645912198214,4.58968941,91.725,91.642,23.3983]
[1645912198516,1.8262413,91.723,91.642,23.3983]
[1645912198715,4.362,91.722,91.642,23.3983]
[1645912199114,7.75543427,91.721,91.642,23.3983]
[1645912199414,1.76989733,91.72,91.642,23.3983]
[1645912199614,4.362,91.719,91.642,23.3983]
[1645912199813,4.362,91.719,91.626,24.8457]
[1645912200013,7.75543427,91.718,91.626,24.8457]
[1645912200214,10.50222348,91.718,91.627,59.9791454]
[1645912200413,9.39825208,91.717,91.627,59.9791454]
[1645912200614,33.98712348,91.717,91.627,59.9791454]
[1645912200815,9.36843487,91.716,91.627,59.9791454]
[1645912201013,1.48925295,91.715,91.627,59.9791454]
[1645912201215,9.24468722,91.715,91.627,59.9791454]
[1645912201714,112.2,91.703,91.601,28.7517]
[1645912201914,109.1,91.701,91.601,28.7517]
[1645912202119,1.49757913,91.7,91.601,28.7517]
[1645912202414,121.21943427,91.699,91.601,28.7517]
[1645912202614,1.45533146,91.698,91.601,4.362]
[1645912202823,1.61727906,91.695,91.601,4.362]